[Event "44th Chess Olympiad Open 2022"]
[Site "Chennai"]
[Date "2022.07.30"]
[Round "2.58"]
[White "Rakotomaharo, Fy Antenaina"]
[Black "Bah, Ebrima"]
[Result "1-0"]
[WhiteElo "2490"]
[BlackElo "2078"]
[Annotator "TA"]
[PlyCount "87"]
[EventDate "2022.??.??"]
[TimeControl "60"]

{[%evp 18,87,33,36,180,187,332,308,355,359,752,743,747,730,929,916,964,948,997,
941,918,881,1048,1041,1136,1105,1062,1055,1204,965,965,954,961,956,1160,1179,
1172,1139,1272,1213,1127,1084,1291,1291,1524,1447,1539,1547,1487,1466,1454,
1449,1424,1416,29984,1645,1566,1446,1575,1547,1413,1370,1489,1543,29989,29990,
29991,822,29992,29993,29993,29994]} 1. e4 {[%emt 0:00:03]} e6 {[%emt 0:00:17]}
2. d4 {[%emt 0:00:06]} d5 {[%emt 0:00:20]} 3. e5 {[%emt 0:00:15]} c5 {[%emt 0:
00:00]} 4. c3 {[%emt 0:00:03]} Qb6 {[%emt 0:01:28]} 5. Nf3 {[%emt 0:00:07]} Nc6
{[%emt 0:00:40]} 6. Be2 {[%emt 0:00:08]} cxd4 {[%emt 0:01:15]} 7. cxd4 {
[%emt 0:00:03]} Nge7 {[%emt 0:00:41]} 8. Na3 {[%emt 0:00:07]} Nf5 {[%emt 0:00:
00]} 9. Nc2 {[%emt 0:00:06]} Bb4+ {[%emt 0:01:33]} 10. Kf1 {[%emt 0:00:07]} O-O
{[%emt 0:01:27] C02: French: Advance Variation.} (10... h5 $14) 11. g4 $1 $18 {
[%emt 0:01:58]} Nfe7 {[%emt 0:00:18] [#]} (11... Nh6 {is a better defense.} 12.
Rg1 Be7) 12. a3 $1 {[%emt 0:00:16]} Ba5 {[%emt 0:03:09] White has a decisive
advantage.} 13. b4 {[%emt 0:00:10]} Nxb4 $2 {[%emt 0:02:21]} (13... Bd7 14. Bd2
Qc7 15. bxa5 Nxa5) 14. axb4 {[%emt 0:00:05]} Bxb4 {[%emt 0:00:36]} 15. Nxb4 {
[%emt 0:00:04] [#]} Ng6 $146 {[%emt 0:01:45]} ({Predecessor:} 15... Qxb4 16.
Ba3 Qb6 17. Bxe7 Re8 18. Bc5 Qc6 19. Rxa7 Rxa7 20. Bxa7 b6 21. Qb1 Bd7 22. Qxb6
{1-0 (34) Leitgeb,J (1678)-Koenig,J (1379) Leitersdorf 2012}) 16. Nd3 {[%emt 0:
00:00]} f6 {[%emt 0:00:24]} 17. h4 {[%emt 0:00:17]} fxe5 {[%emt 0:00:10]} 18.
dxe5 {[%emt 0:00:06]} Bd7 {[%emt 0:01:12]} 19. Ba3 {[%emt 0:00:25][%cal Yc1a3,
Ya3c5,Yc5d4]} Rf7 {[%emt 0:01:40]} 20. Ng5 {[%emt 0:00:06]} Raf8 {[%emt 0:01:
18]} 21. Nxf7 {[%emt 0:00:13]} Rxf7 {[%emt 0:00:38]} 22. Bc5 {[%emt 0:00:16]}
Qc7 {[%emt 0:00:22]} 23. Bd4 {[%emt 0:01:18]} a6 {[%emt 0:00:00]} 24. Qd2 {
[%emt 0:00:19]} Bb5 {[%emt 0:00:30]} 25. Rc1 {[%emt 0:00:34]} Bc6 {[%emt 0:02:
20]} 26. h5 {[%emt 0:00:13]} Nf8 {[%emt 0:00:19]} 27. Nb4 {[%emt 0:00:00]} Nd7
{[%emt 0:01:02]} 28. Qe3 {[%emt 0:00:16]} Nb8 {[%emt 0:00:22]} 29. Kg2 {
[%emt 0:00:26]} Rf8 {[%emt 0:01:18]} 30. Bd3 {[%emt 0:00:19]} Qf7 {[%emt 0:00:
38]} 31. g5 {[%emt 0:00:19]} Qf4 {[%emt 0:01:03]} 32. Qxf4 {[%emt 0:00:00]}
Rxf4 {[%emt 0:00:13]} 33. Nxc6 {[%emt 0:00:04]} Nxc6 {[%emt 0:00:09]} 34. Be3 {
[%emt 0:00:07]} Rg4+ {[%emt 0:02:34]} 35. Kh3 {[%emt 0:00:06] Threatening mate
with Rxc6.} Ra4 {[%emt 0:03:25] [#]} 36. Ra1 {[%emt 0:00:31]} (36. Rxc6 $142 $1
bxc6 37. Rb1 Kf8 38. Bc5+ Ke8 39. Rb8+ Kd7 40. Rb7+ Kc8 41. Rxg7) 36... Rxa1 {
[%emt 0:02:42]} 37. Rxa1 {[%emt 0:00:10]} Nxe5 {[%emt 0:00:00]} 38. Be2 {
[%emt 0:01:30] Hoping for Rb1.} Nc6 {[%emt 0:00:30]} 39. Rb1 {[%emt 0:00:07]}
d4 {[%emt 0:01:02]} 40. Bd2 {[%emt 0:00:08]} b5 {[%emt 0:00:11]} 41. Rc1 {
[%emt 0:30:04]} Ne5 {[%emt 0:31:55]} 42. Rc8+ {[%emt 0:00:25]} Kf7 {[%emt 0:00:
21]} 43. Bb4 {[%emt 0:00:02][%csl Gb4][%cal Rc8f8]} Nd7 {[%emt 0:00:00]} 44.
Rd8 {[%emt 0:00:05] Black did not feel at home in the position after the
opening. Weighted Error Value: White=0.02 (flawless) /Black=1.18} 1-0

[Event "44th Chess Olympiad Open 2022"]
[Site "Chennai"]
[Date "2022.07.30"]
[Round "2.58"]
[White "Razanadrakotoarisoa, Toavina"]
[Black "Garber, Ousainou"]
[Result "1-0"]
[WhiteElo "2039"]
[BlackElo "1772"]
[Annotator "NA RC"]
[PlyCount "53"]
[EventDate "2022.??.??"]
[TimeControl "60"]

1. e4 {[%emt 0:00:07]} c5 {[%emt 0:00:14]} 2. Nf3 {[%emt 0:00:15]} e6 {[%emt 0:
00:00]} 3. d4 {[%emt 0:00:19]} cxd4 {[%emt 0:01:03]} 4. Nxd4 {[%emt 0:00:10]}
Nc6 {[%emt 0:00:22]} 5. Nc3 {[%emt 0:00:19]} a6 {[%emt 0:00:28]} 6. Be3 {
[%emt 0:00:19]} Bb4 {[%emt 0:00:57]} 7. Nxc6 {[%emt 0:01:08]} bxc6 {[%emt 0:00:
00]} 8. Qd4 {[%emt 0:00:42]} Bxc3+ {[%emt 0:04:14]} 9. Qxc3 {[%emt 0:00:13]} f6
{[%emt 0:02:09]} 10. h4 {[%emt 0:13:09]} Ne7 {[%emt 0:00:54]} 11. Bc5 {[%emt 0:
00:00]} O-O {[%emt 0:00:42]} 12. Bd6 {[%emt 0:01:45]} Rf7 {[%emt 0:00:30]} 13.
h5 {[%emt 0:01:03]} h6 {[%emt 0:00:19]} 14. g4 {[%emt 0:09:01]} a5 {[%emt 0:00:
00]} 15. O-O-O {[%emt 0:03:20]} Ba6 {[%emt 0:01:17]} 16. Bxa6 {[%emt 0:01:49]}
Rxa6 {[%emt 0:00:21]} 17. Qc4 {[%emt 0:02:29]} Rb6 {[%emt 0:00:51]} 18. f4 {
[%emt 0:00:49]} Nc8 {[%emt 0:02:56]} 19. Bc5 {[%emt 0:00:31]} Rb5 {[%emt 0:00:
00]} 20. a4 {[%emt 0:01:23]} d5 {[%emt 0:00:48]} 21. axb5 {[%emt 0:00:18]} Qc7
{[%emt 0:02:04]} 22. exd5 {[%emt 0:03:09]} cxb5 {[%emt 0:00:30]} 23. Qxb5 {
[%emt 0:00:42]} exd5 {[%emt 0:03:42]} 24. Kb1 {[%emt 0:01:58]} Rd7 {[%emt 0:00:
00]} 25. Rhe1 {[%emt 0:00:17]} f5 {[%emt 0:04:17]} 26. Re8+ {[%emt 0:00:39]}
Kf7 {[%emt 0:00:25]} 27. Rf8+ {[%emt 0:00:14]} 1-0

[Event "44th Chess Olympiad Open 2022"]
[Site "Chennai"]
[Date "2022.07.30"]
[Round "2.58"]
[White "Dalliah, Joseph"]
[Black "Andrianiaina, Heritiana"]
[Result "0-1"]
[WhiteElo "1920"]
[BlackElo "2095"]
[Annotator "RC"]
[PlyCount "206"]
[EventDate "2022.??.??"]
[TimeControl "60"]

1. d4 {[%emt 0:00:05]} Nf6 {[%emt 0:01:05]} 2. c4 {[%emt 0:00:14]} e6 {[%emt 0:
00:00]} 3. Nc3 {[%emt 0:00:22]} Bb4 {[%emt 0:00:30]} 4. Nf3 {[%emt 0:00:17]}
Ne4 {[%emt 0:00:32]} 5. Qc2 {[%emt 0:00:22]} f5 {[%emt 0:00:10]} 6. Bf4 {
[%emt 0:00:30]} O-O {[%emt 0:00:47]} 7. e3 {[%emt 0:00:07]} b6 {[%emt 0:00:12]}
8. Bd3 {[%emt 0:00:42]} Bb7 {[%emt 0:00:07]} 9. O-O {[%emt 0:02:33]} Bxc3 {
[%emt 0:00:40]} 10. bxc3 {[%emt 0:01:36]} g5 {[%emt 0:04:46]} 11. Bg3 {[%emt 0:
00:00]} d6 {[%emt 0:03:32]} 12. Nd2 {[%emt 0:04:35]} Nxd2 {[%emt 0:06:56]} 13.
Qxd2 {[%emt 0:00:03]} h5 {[%emt 0:04:39]} 14. h3 {[%emt 0:00:35]} h4 {[%emt 0:
00:00]} 15. Bh2 {[%emt 0:00:13]} Nd7 {[%emt 0:06:40]} 16. Qe2 {[%emt 0:05:24]}
Nf6 {[%emt 0:03:59]} 17. a4 {[%emt 0:08:43]} a5 {[%emt 0:01:18]} 18. Rfd1 {
[%emt 0:05:08]} Qd7 {[%emt 0:06:08]} 19. f3 {[%emt 0:02:33]} Qg7 {[%emt 0:00:
00]} 20. e4 {[%emt 0:09:04]} f4 {[%emt 0:10:48]} 21. Kh1 {[%emt 0:03:54]} Nh5 {
[%emt 0:02:15]} 22. Qa2 {[%emt 0:13:48]} Rae8 {[%emt 0:10:30]} 23. Rab1 {
[%emt 0:00:00]} Bc6 {[%emt 0:04:31]} 24. Bg1 {[%emt 0:00:00]} Qd7 {[%emt 0:00:
00]} 25. Bc2 {[%emt 0:00:00]} Ng3+ {[%emt 0:00:07]} 26. Kh2 {[%emt 0:00:00]}
Ne2 {[%emt 0:00:12]} 27. Qa3 {[%emt 0:01:41]} Nxg1 {[%emt 0:00:25]} 28. Kxg1 {
[%emt 0:00:44]} Qe7 {[%emt 0:01:13]} 29. Qc1 {[%emt 0:05:53]} Kg7 {[%emt 0:00:
00]} 30. Qd2 {[%emt 0:00:05]} e5 {[%emt 0:05:09]} 31. d5 {[%emt 0:00:13]} Bd7 {
[%emt 0:00:54]} 32. Rb2 {[%emt 0:01:01]} Rf6 {[%emt 0:00:36]} 33. Qf2 {[%emt 0:
00:00]} Rh8 {[%emt 0:00:36]} 34. Bb3 {[%emt 0:01:14]} Qe8 {[%emt 0:00:59]} 35.
Ra2 {[%emt 0:00:09]} Qc8 {[%emt 0:01:58]} 36. Qf1 {[%emt 0:01:02]} Rg6 {
[%emt 0:00:10]} 37. Kf2 {[%emt 0:01:15]} Kf6 {[%emt 0:11:09]} 38. Ke1 {[%emt 0:
00:00]} Ke7 {[%emt 0:01:18]} 39. Qf2 {[%emt 0:03:05]} Qg8 {[%emt 0:01:16]} 40.
Rad2 {[%emt 0:00:40]} Rh7 {[%emt 0:00:34]} 41. Rd3 {[%emt 0:40:08]} Ke8 {
[%emt 0:33:38]} 42. R1d2 {[%emt 0:00:06]} Rhg7 {[%emt 0:01:29]} 43. Kd1 {
[%emt 0:00:06]} Kd8 {[%emt 0:01:09]} 44. Kc1 {[%emt 0:00:18]} Kc8 {[%emt 0:00:
00]} 45. Kb2 {[%emt 0:00:42]} Qe8 {[%emt 0:01:35]} 46. Ka3 {[%emt 0:00:06]} Qf8
{[%emt 0:00:03]} 47. Kb2 {[%emt 0:00:27]} Qf6 {[%emt 0:00:38]} 48. Qg1 {
[%emt 0:00:33]} Kb7 {[%emt 0:00:26]} 49. Ka3 {[%emt 0:01:02]} Rg8 {[%emt 0:00:
00]} 50. Rb2 {[%emt 0:00:14]} Kc8 {[%emt 0:00:08]} 51. Ka2 {[%emt 0:00:16]} Kd8
{[%emt 0:01:20]} 52. Bd1 {[%emt 0:00:22]} Ke7 {[%emt 0:00:24]} 53. Bc2 {
[%emt 0:00:46]} Qg7 {[%emt 0:00:53]} 54. Rd1 {[%emt 0:00:32]} Qh6 {[%emt 0:00:
00]} 55. Qf2 {[%emt 0:00:00]} Qh5 {[%emt 0:00:00]} 56. Rh1 {[%emt 0:00:19]}
R6g7 {[%emt 0:00:10]} 57. Kb1 {[%emt 0:00:00]} Rb8 {[%emt 0:00:00]} 58. Ka2 {
[%emt 0:00:00]} Qe8 {[%emt 0:00:00]} 59. Ka3 {[%emt 0:00:00]} Bc8 {[%emt 0:00:
00]} 60. Bb3 {[%emt 0:00:00]} Kf6 {[%emt 0:00:00]} 61. Ra2 {[%emt 0:00:00]} Ba6
{[%emt 0:00:00]} 62. Rd1 {[%emt 0:00:00]} Rd7 {[%emt 0:00:00]} 63. Rad2 {
[%emt 0:00:00]} Qc8 {[%emt 0:00:00]} 64. Kb2 {[%emt 0:00:00]} Qb7 {[%emt 0:00:
00]} 65. Kc2 {[%emt 0:00:00]} c6 {[%emt 0:00:00]} 66. Qe2 {[%emt 0:00:00]} Rc8
{[%emt 0:00:00]} 67. Kb2 {[%emt 0:00:00]} cxd5 {[%emt 0:00:00]} 68. Rxd5 {
[%emt 0:00:00]} Qc6 {[%emt 0:00:00]} 69. Qd3 {[%emt 0:02:25]} Ke7 {[%emt 0:00:
00]} 70. Rd2 {[%emt 0:00:00]} Rcc7 {[%emt 0:00:00]} 71. Rd1 {[%emt 0:00:00]}
Bxc4 {[%emt 0:00:00]} 72. Bxc4 {[%emt 0:00:02]} Qxc4 {[%emt 0:00:01]} 73. Qxc4
{[%emt 0:00:00]} Rxc4 {[%emt 0:00:00]} 74. Kb3 {[%emt 0:00:00]} Rdc7 {[%emt 0:
00:00]} 75. R1d3 {[%emt 0:00:00]} R7c6 {[%emt 0:00:00]} 76. Rb5 {[%emt 0:00:00]
} R4c5 {[%emt 0:00:00]} 77. Rxc5 {[%emt 0:00:00]} bxc5 {[%emt 0:00:00]} 78. Kc4
{[%emt 0:00:04]} Rb6 {[%emt 0:00:00]} 79. Rd2 {[%emt 0:01:27]} Kd7 {[%emt 0:00:
00]} 80. Rc2 {[%emt 0:01:04]} Kc6 {[%emt 0:00:00]} 81. Ra2 {[%emt 0:02:29]} Rb1
{[%emt 0:00:00]} 82. Rd2 {[%emt 0:00:13]} Ra1 {[%emt 0:00:00]} 83. Kb3 {
[%emt 0:00:03]} c4+ {[%emt 0:00:00]} 84. Kxc4 {[%emt 0:00:05]} Rxa4+ {[%emt 0:
00:00]} 85. Kb3 {[%emt 0:00:34]} Ra1 {[%emt 0:00:04]} 86. Kb2 {[%emt 0:03:44]}
Rg1 {[%emt 0:00:00]} 87. Kb3 {[%emt 0:01:06]} Rb1+ {[%emt 0:00:00]} 88. Ka4 {
[%emt 0:01:43]} Kc5 {[%emt 0:00:00]} 89. Rd5+ {[%emt 0:05:36]} Kc4 {[%emt 0:00:
00]} 90. Kxa5 {[%emt 0:00:05]} Rb2 {[%emt 0:00:04]} 91. Rxd6 {[%emt 0:00:29]}
Rxg2 {[%emt 0:00:04]} 92. Rd5 {[%emt 0:01:48]} Rg3 {[%emt 0:00:40]} 93. Rxe5 {
[%emt 0:00:11]} Rxh3 {[%emt 0:00:13]} 94. Rxg5 {[%emt 0:00:22]} Rxf3 {[%emt 0:
00:00]} 95. e5 {[%emt 0:01:46]} Kc5 {[%emt 0:08:42]} 96. Ka6 {[%emt 0:07:02]}
Rxc3 {[%emt 0:02:00]} 97. Rg4 {[%emt 0:00:20]} f3 {[%emt 0:00:40]} 98. Rxh4 {
[%emt 0:00:13]} f2 {[%emt 0:00:07]} 99. Rf4 {[%emt 0:00:07]} Rc2 {[%emt 0:00:
00]} 100. Rf6 {[%emt 0:03:39]} Kd5 {[%emt 0:00:17]} 101. e6 {[%emt 0:00:05]}
Kd6 {[%emt 0:00:11]} 102. Kb5 {[%emt 0:01:00]} Ke7 {[%emt 0:01:56]} 103. Rf3 {
[%emt 0:00:05]} Kxe6 {[%emt 0:00:08]} 0-1

[Event "44th Chess Olympiad Open 2022"]
[Site "Chennai"]
[Date "2022.07.30"]
[Round "2.58"]
[White "Jallow, Jalamang"]
[Black "Rakotomaharavo, Dylan"]
[Result "0-1"]
[WhiteElo "1572"]
[BlackElo "1948"]
[Annotator "NA RC"]
[PlyCount "130"]
[EventDate "2022.??.??"]
[TimeControl "60"]

1. d4 {[%emt 0:00:07]} d5 {[%emt 0:00:15]} 2. Nf3 {[%emt 0:00:54]} Nf6 {
[%emt 0:00:29]} 3. g3 {[%emt 0:00:54]} e6 {[%emt 0:00:28]} 4. Bg2 {[%emt 0:00:
00]} c5 {[%emt 0:00:07]} 5. e3 {[%emt 0:03:13]} Nc6 {[%emt 0:00:01]} 6. c3 {
[%emt 0:01:40]} Bd6 {[%emt 0:00:22]} 7. Nbd2 {[%emt 0:03:50]} O-O {[%emt 0:00:
00]} 8. Nb3 {[%emt 0:01:02]} b6 {[%emt 0:00:09]} 9. Bd2 {[%emt 0:00:58]} Ba6 {
[%emt 0:00:07]} 10. Nc1 {[%emt 0:01:21]} Re8 {[%emt 0:00:59]} 11. Ne2 {[%emt 0:
00:00]} e5 {[%emt 0:00:23]} 12. dxe5 {[%emt 0:03:03]} Bxe5 {[%emt 0:00:06]} 13.
O-O {[%emt 0:01:05]} Rc8 {[%emt 0:00:10]} 14. Re1 {[%emt 0:00:22]} Bb8 {
[%emt 0:00:24]} 15. Qc2 {[%emt 0:02:27]} d4 {[%emt 0:04:21]} 16. Qa4 {[%emt 0:
00:00]} Bxe2 {[%emt 0:00:46]} 17. Rxe2 {[%emt 0:00:40]} d3 {[%emt 0:00:33]} 18.
Ree1 {[%emt 0:02:18]} Ne4 {[%emt 0:02:10]} 19. a3 {[%emt 0:03:46]} c4 {[%emt 0:
00:00]} 20. Qd1 {[%emt 0:03:04]} Qf6 {[%emt 0:00:39]} 21. Rf1 {[%emt 0:00:52]}
Na5 {[%emt 0:00:25]} 22. Nd4 {[%emt 0:00:31]} Nc5 {[%emt 0:00:09]} 23. Rb1 {
[%emt 0:02:03]} Ncb3 {[%emt 0:00:23]} 24. Kh1 {[%emt 0:03:35]} Be5 {[%emt 0:00:
00]} 25. Kg1 {[%emt 0:01:00]} g6 {[%emt 0:00:20]} 26. Kh1 {[%emt 0:02:54]} Rc5
{[%emt 0:00:25]} 27. Nf3 {[%emt 0:01:06]} Qd6 {[%emt 0:01:06]} 28. Nd4 {
[%emt 0:00:26]} f5 {[%emt 0:00:21]} 29. Kg1 {[%emt 0:01:11]} a6 {[%emt 0:00:07]
} 30. Kh1 {[%emt 0:00:57]} Rc7 {[%emt 0:01:11]} 31. Kg1 {[%emt 0:00:14]} Bxd4 {
[%emt 0:00:45]} 32. cxd4 {[%emt 0:00:23]} Nxd2 {[%emt 0:00:06]} 33. Qxd2 {
[%emt 0:00:24]} Nb3 {[%emt 0:00:07]} 34. Qc3 {[%emt 0:00:31]} b5 {[%emt 0:00:
00]} 35. Rbd1 {[%emt 0:03:48]} Kg7 {[%emt 0:03:25]} 36. Rxd3 {[%emt 0:00:29]}
cxd3 {[%emt 0:00:22]} 37. Qxb3 {[%emt 0:00:33]} d2 {[%emt 0:00:26]} 38. Qd1 {
[%emt 0:01:31]} Rc1 {[%emt 0:00:16]} 39. Qxd2 {[%emt 0:00:29]} Rxf1+ {[%emt 0:
00:00]} 40. Bxf1 {[%emt 0:01:01]} Rc8 {[%emt 0:00:06]} 41. h4 {[%emt 0:30:55]}
Qc6 {[%emt 0:31:24]} 42. d5 {[%emt 0:01:04]} Qd6 {[%emt 0:00:16]} 43. Bg2 {
[%emt 0:01:34]} Rc4 {[%emt 0:00:27]} 44. Kh2 {[%emt 0:00:30]} Rxh4+ {[%emt 0:
00:00]} 45. Kg1 {[%emt 0:00:12]} Rc4 {[%emt 0:00:07]} 46. Bf1 {[%emt 0:02:20]}
Rc7 {[%emt 0:00:36]} 47. b4 {[%emt 0:00:36]} Qe5 {[%emt 0:00:14]} 48. Kh2 {
[%emt 0:02:06]} h5 {[%emt 0:00:12]} 49. f4 {[%emt 0:02:50]} Qf6 {[%emt 0:00:11]
} 50. Bg2 {[%emt 0:00:47]} h4 {[%emt 0:00:08]} 51. g4 {[%emt 0:02:23]} fxg4 {
[%emt 0:00:14]} 52. e4 {[%emt 0:00:57]} Rf7 {[%emt 0:01:13]} 53. e5 {[%emt 0:
00:00]} Qxf4+ {[%emt 0:00:06]} 54. Qxf4 {[%emt 0:01:16]} Rxf4 {[%emt 0:00:08]}
55. d6 {[%emt 0:00:18]} Rd4 {[%emt 0:00:12]} 56. Bb7 {[%emt 0:01:45]} Rd2+ {
[%emt 0:00:56]} 57. Kg1 {[%emt 0:02:06]} h3 {[%emt 0:00:00]} 58. Bc8 {[%emt 0:
00:00]} Kf8 {[%emt 0:00:13]} 59. Kh1 {[%emt 0:01:27]} g3 {[%emt 0:00:08]} 60.
Bg4 {[%emt 0:03:39]} Rc2 {[%emt 0:00:38]} 61. Bxh3 {[%emt 0:01:12]} Rh2+ {
[%emt 0:00:08]} 62. Kg1 {[%emt 0:00:30]} Rxh3 {[%emt 0:00:08]} 63. Kg2 {
[%emt 0:00:20]} Rh5 {[%emt 0:00:04]} 64. e6 {[%emt 0:01:56]} Rd5 {[%emt 0:00:
00]} 65. d7 {[%emt 0:01:30]} Ke7 {[%emt 0:00:07]} 0-1

[Event "44th Chess Olympiad Open 2022"]
[Site "Chennai"]
[Date "2022.07.30"]
[Round "2.59"]
[White "Rocha, Maximiliano"]
[Black "Drayton, Anthony"]
[Result "1-0"]
[WhiteElo "2117"]
[BlackElo "1928"]
[Annotator "NA"]
[PlyCount "83"]
[EventDate "2022.??.??"]
[TimeControl "60"]

1. e4 {[%emt 0:00:11]} e6 {[%emt 0:00:35]} 2. d4 {[%emt 0:00:19]} d5 {[%emt 0:
00:00]} 3. Nd2 {[%emt 0:00:36]} Nf6 {[%emt 0:00:25]} 4. Bd3 {[%emt 0:03:09]} c5
{[%emt 0:04:23]} 5. e5 {[%emt 0:00:16]} Nfd7 {[%emt 0:00:13]} 6. c3 {[%emt 0:
00:00]} Nc6 {[%emt 0:00:43]} 7. Ndf3 {[%emt 0:00:21]} Qb6 {[%emt 0:00:32]} 8.
Ne2 {[%emt 0:00:22]} cxd4 {[%emt 0:02:32]} 9. cxd4 {[%emt 0:00:14]} f5 {
[%emt 0:05:01]} 10. exf6 {[%emt 0:02:58]} Nxf6 {[%emt 0:00:00]} 11. O-O {
[%emt 0:00:20]} Bd6 {[%emt 0:00:00]} 12. a3 {[%emt 0:06:32]} O-O {[%emt 0:00:
00]} 13. Nc3 {[%emt 0:05:48]} Bd7 {[%emt 0:05:54]} 14. Bg5 {[%emt 0:08:23]}
Rac8 {[%emt 0:01:57]} 15. h3 {[%emt 0:04:36]} Bb8 {[%emt 0:01:09]} 16. Re1 {
[%emt 0:02:11]} a6 {[%emt 0:02:27]} 17. Rc1 {[%emt 0:16:18]} Qxb2 {[%emt 0:00:
00]} 18. Bxf6 {[%emt 0:00:14]} Rxf6 {[%emt 0:00:09]} 19. Na4 {[%emt 0:00:10]}
Qxa3 {[%emt 0:01:16]} 20. Nc5 {[%emt 0:00:16]} Be8 {[%emt 0:05:50]} 21. Ra1 {
[%emt 0:08:45]} Qc3 {[%emt 0:01:00]} 22. Re3 {[%emt 0:02:50]} Qb4 {[%emt 0:00:
00]} 23. Bxh7+ {[%emt 0:04:03]} Kxh7 {[%emt 0:00:40]} 24. Rb3 {[%emt 0:00:05]}
Qc4 {[%emt 0:01:29]} 25. Rc1 {[%emt 0:00:07]} Nxd4 {[%emt 0:04:48]} 26. Rxc4 {
[%emt 0:12:12]} dxc4 {[%emt 0:00:20]} 27. Ng5+ {[%emt 0:04:45]} Kg8 {[%emt 0:
00:00]} 28. Rc3 {[%emt 0:02:22]} Rxc5 {[%emt 0:01:18]} 29. Qxd4 {[%emt 0:07:23]
} Rxg5 {[%emt 0:09:19]} 30. Qd8 {[%emt 0:00:33]} Kf7 {[%emt 0:05:42]} 31. Qxb8
{[%emt 0:01:29]} Bc6 {[%emt 0:00:14]} 32. g4 {[%emt 0:00:13]} Rd5 {[%emt 0:00:
00]} 33. Rxc4 {[%emt 0:04:42]} Rd1+ {[%emt 0:00:11]} 34. Kh2 {[%emt 0:00:07]}
g5 {[%emt 0:11:39]} 35. f4 {[%emt 0:01:52]} gxf4 {[%emt 0:00:22]} 36. Rxf4 {
[%emt 0:00:15]} Rd2+ {[%emt 0:02:39]} 37. Kg3 {[%emt 0:00:02]} Rd3+ {[%emt 0:
00:00]} 38. Kh4 {[%emt 0:00:09]} Rxf4 {[%emt 0:05:04]} 39. Qxf4+ {[%emt 0:00:
00]} Ke7 {[%emt 0:03:19]} 40. g5 {[%emt 0:00:26]} Bg2 {[%emt 0:04:53]} 41. Qf6+
{[%emt 0:30:15]} Kd6 {[%emt 0:30:37]} 42. Qd8+ {[%emt 0:00:08]} 1-0

[Event "44th Chess Olympiad Open 2022"]
[Site "Chennai"]
[Date "2022.07.30"]
[Round "2.59"]
[White "Espinoza Solano, Jose Nahum"]
[Black "Lee, Ethan"]
[Result "1-0"]
[WhiteElo "2093"]
[BlackElo "1629"]
[Annotator "NA"]
[PlyCount "85"]
[EventDate "2022.??.??"]
[TimeControl "60"]

1. e4 {[%emt 0:00:03]} c6 {[%emt 0:00:02]} 2. d4 {[%emt 0:00:19]} g6 {[%emt 0:
00:00]} 3. Nc3 {[%emt 0:02:33]} d5 {[%emt 0:00:13]} 4. e5 {[%emt 0:00:52]} Bg7
{[%emt 0:00:55]} 5. f4 {[%emt 0:00:30]} f6 {[%emt 0:03:10]} 6. Nf3 {[%emt 0:00:
00]} Bg4 {[%emt 0:02:12]} 7. Be2 {[%emt 0:00:53]} Bxf3 {[%emt 0:00:54]} 8. Bxf3
{[%emt 0:00:06]} fxe5 {[%emt 0:05:40]} 9. fxe5 {[%emt 0:00:22]} Nh6 {[%emt 0:
00:00]} 10. Bg5 {[%emt 0:02:43]} Nf7 {[%emt 0:09:33]} 11. Be3 {[%emt 0:00:48]}
e6 {[%emt 0:00:49]} 12. Bg4 {[%emt 0:01:33]} Qe7 {[%emt 0:00:40]} 13. O-O {
[%emt 0:00:42]} O-O {[%emt 0:01:09]} 14. Ne2 {[%emt 0:00:57]} Na6 {[%emt 0:00:
00]} 15. Qd2 {[%emt 0:02:23]} c5 {[%emt 0:02:31]} 16. c3 {[%emt 0:02:53]} cxd4
{[%emt 0:08:31]} 17. cxd4 {[%emt 0:00:21]} Rac8 {[%emt 0:13:44]} 18. Rac1 {
[%emt 0:02:00]} Qd7 {[%emt 0:02:39]} 19. Nf4 {[%emt 0:02:02]} Nc7 {[%emt 0:00:
00]} 20. Rc2 {[%emt 0:03:17]} Bh6 {[%emt 0:05:06]} 21. Rfc1 {[%emt 0:02:13]}
Bxf4 {[%emt 0:08:06]} 22. Bxf4 {[%emt 0:00:19]} Nb5 {[%emt 0:02:22]} 23. Qb4 {
[%emt 0:01:12]} Rxc2 {[%emt 0:04:08]} 24. Rxc2 {[%emt 0:00:10]} Nd8 {[%emt 0:
00:00]} 25. Bh6 {[%emt 0:03:04]} Rf7 {[%emt 0:00:20]} 26. Bg5 {[%emt 0:00:48]}
Nc7 {[%emt 0:01:04]} 27. h4 {[%emt 0:04:09]} Nc6 {[%emt 0:01:54]} 28. Qd2 {
[%emt 0:02:33]} Nb5 {[%emt 0:00:33]} 29. Be3 {[%emt 0:00:20]} Qe7 {[%emt 0:00:
00]} 30. g3 {[%emt 0:04:58]} Qb4 {[%emt 0:01:35]} 31. Rxc6 {[%emt 0:00:36]}
Qxd2 {[%emt 0:00:22]} 32. Rc8+ {[%emt 0:00:02]} Rf8 {[%emt 0:01:52]} 33. Rxf8+
{[%emt 0:00:05]} Kxf8 {[%emt 0:00:10]} 34. Bxd2 {[%emt 0:00:04]} Nxd4 {[%emt 0:
00:00]} 35. Be3 {[%emt 0:01:01]} Nf5 {[%emt 0:01:10]} 36. Bxf5 {[%emt 0:00:09]}
exf5 {[%emt 0:00:32]} 37. Bxa7 {[%emt 0:00:09]} Ke7 {[%emt 0:00:10]} 38. Kf2 {
[%emt 0:00:07]} Ke6 {[%emt 0:00:12]} 39. Bd4 {[%emt 0:00:02]} h6 {[%emt 0:00:
00]} 40. a4 {[%emt 0:00:16]} g5 {[%emt 0:00:35]} 41. hxg5 {[%emt 0:30:27]} hxg5
{[%emt 0:30:06]} 42. a5 {[%emt 0:00:10]} f4 {[%emt 0:00:13]} 43. gxf4 {[%emt 0:
00:00]} 1-0